bitfinex-derivatives/quotes_BNBF0:USTF0_20250303
["timestamp","ask_amount","ask_price","bid_price","bid_amount"]
[1741032097283,0.32060457,574.01,572.28,0.28730446]
[1741032097483,0.34843205,574.0,572.29,0.28730446]
[1741032097673,0.34843205,574.0,572.25,0.34949759]
[1741032097674,0.34843205,574.0,572.26,0.28730446]
[1741032097870,0.34843205,574.0,572.27,0.28730446]
[1741032098076,0.32063532,573.99,572.26,0.28730446]
[1741032098271,0.34845026,573.97,572.27,0.28730446]
[1741032098476,0.32063532,573.96,572.28,0.28730446]
[1741032098776,0.32063532,573.96,572.29,0.28730446]
[1741032098977,0.32063532,573.96,572.25,0.34949759]
[1741032098978,0.32063532,573.96,572.3,0.28730446]
[1741032099178,1.82229961,573.95,572.31,0.28730446]
[1741032099376,0.32063532,573.94,572.32,0.28730446]
[1741032099572,0.32063532,573.94,572.26,0.28730446]
[1741032099772,0.32063532,573.94,572.27,0.28730446]
[1741032099978,0.32063532,573.94,572.28,0.28730446]
[1741032100176,0.32063532,573.94,572.26,0.28730446]
[1741032100373,0.32063532,573.94,572.27,0.28730446]
[1741032100571,0.32063532,573.94,572.26,0.28730446]
[1741032102175,1.82229961,573.95,572.26,0.28730446]
[1741032102176,0.32063532,573.93,572.26,0.28730446]
[1741032102375,0.32063532,573.92,572.26,0.28730446]
[1741032102572,0.32063532,573.91,572.26,0.28730446]
[1741032102772,0.32063532,573.9,572.26,0.28730446]
[1741032103075,0.32063532,573.89,572.26,0.28730446]
[1741032103373,0.32063532,573.88,572.26,0.28730446]
[1741032103578,1.82229961,573.95,572.26,0.28730446]
[1741032103579,0.32063532,573.87,572.26,0.28730446]
[1741032103779,0.32063532,573.94,572.26,0.28730446]
[1741032103976,0.32063532,573.86,572.26,0.28730446]
[1741032104175,0.32063532,573.93,572.26,0.28730446]
[1741032104376,0.32063532,573.92,570.02,0.07017297]
[1741032104579,0.32063532,573.91,570.21,0.35074797]
[1741032104882,0.32063532,573.9,570.22,0.28761539]
[1741032105182,0.32063532,573.89,570.23,0.28761539]
[1741032105380,0.32063532,573.88,570.24,0.28761539]
[1741032105576,0.32063532,573.87,570.25,0.28761539]
[1741032105776,0.32063532,573.86,570.26,0.28761539]
[1741032106082,0.32063532,573.85,570.27,0.28761539]
[1741032106274,0.32063532,573.84,570.28,0.28761539]
[1741032106475,0.32063532,573.83,570.29,0.28761539]
[1741032106681,0.32063532,573.82,570.3,0.28761539]
[1741032106877,0.32063532,573.81,570.31,0.28761539]
[1741032107077,0.32063532,573.8,570.32,0.28761539]
[1741032107281,0.32063532,573.79,570.33,0.28761539]
[1741032107582,1.82229961,573.95,570.21,0.35074797]
[1741032107583,0.32063532,573.78,570.34,0.28761539]
[1741032107778,0.32063532,573.77,570.35,0.28761539]
[1741032108078,0.32063532,573.76,570.36,0.28761539]
[1741032108479,0.32063532,573.75,570.37,1.49461539]
[1741032108684,0.32063532,573.75,570.37,2.77991901]
[1741032108881,1.01758662,573.74,570.38,0.28761539]
[1741032109084,0.32063532,573.74,570.39,0.28761539]
[1741032109279,0.32063532,573.73,570.4,0.28761539]
[1741032109481,0.32063532,573.72,570.41,0.28761539]
[1741032109690,0.32063532,573.71,570.42,0.28761539]
[1741032109989,0.32063532,573.71,570.37,2.49230362]
[1741032109990,0.32063532,573.7,570.43,0.28761539]
[1741032110190,0.32063532,573.69,570.44,0.28761539]
[1741032110485,0.32063532,573.68,570.45,0.28761539]
[1741032110681,0.32063532,573.67,570.46,0.28761539]
[1741032110884,0.32063532,573.66,570.47,0.28761539]
[1741032111188,0.32063532,573.65,570.48,0.28761539]
[1741032111482,0.32063532,573.64,570.49,0.28761539]
[1741032111682,0.32063532,573.63,570.5,0.28761539]
[1741032111882,0.32063532,573.62,570.51,0.28761539]
[1741032112085,0.937,573.69,570.52,0.28761539]
[1741032112086,0.32063532,573.61,570.52,0.28761539]
[1741032112285,0.32063532,573.6,570.53,0.28761539]
[1741032112487,0.32063532,573.59,570.54,0.28761539]
[1741032112783,0.32063532,573.58,570.55,0.28761539]
[1741032113089,0.32063532,573.57,570.56,0.28761539]
[1741032113392,0.32063532,573.68,570.57,0.28761539]
[1741032113586,0.32063532,573.56,570.58,0.28761539]
[1741032113789,0.32063532,573.67,570.58,0.28761539]
[1741032113989,0.32063532,573.55,570.59,0.28761539]
[1741032114185,0.937,573.69,570.37,1.207]
[1741032114186,0.32063532,573.66,570.6,0.28761539]
[1741032114392,0.32063532,573.54,570.61,0.28761539]
[1741032114585,0.937,573.69,570.37,1.207]
[1741032114586,0.32063532,573.53,570.62,0.28761539]
[1741032114786,0.32063532,573.52,570.63,0.28761539]
[1741032115091,0.32063532,573.51,570.64,0.28761539]
[1741032115286,0.937,573.69,570.37,1.207]
[1741032115287,0.32063532,573.5,570.65,0.28761539]
[1741032115493,0.32063532,573.49,570.66,0.28761539]
[1741032115690,0.32063532,573.48,570.67,0.28761539]
[1741032115890,0.32063532,573.49,570.68,0.28761539]
[1741032116090,1.82537428,573.5,570.37,1.207]
[1741032116091,0.32121309,573.48,570.69,0.28790331]
[1741032116292,0.32121309,573.49,570.7,0.28790331]
[1741032116491,0.32121309,573.48,570.71,0.28790331]
[1741032116792,0.32121309,573.47,570.72,0.28790331]
[1741032116993,0.32121309,573.46,570.73,0.28790331]
[1741032117188,0.32121309,573.45,570.74,0.28790331]
[1741032117391,0.32121309,573.44,570.75,0.28790331]
[1741032117589,0.32121309,573.43,570.76,0.28790331]
[1741032117796,0.32121309,573.49,570.77,0.28790331]
[1741032117989,0.32121309,573.48,570.78,0.28790331]
[1741032118195,0.32121309,573.47,570.79,0.28790331]
[1741032118394,0.32121309,573.46,570.8,0.28790331]
[1741032118590,0.32121309,573.45,570.81,0.28790331]
[1741032118789,0.32121309,573.46,570.82,0.28790331]
[1741032118996,1.82519876,573.47,570.37,1.207]
[1741032118997,0.32121309,573.45,570.83,0.28790331]
[1741032119193,1.82519876,573.47,570.84,0.28777288]
[1741032119387,0.32108068,573.46,570.85,0.28777288]
[1741032119590,0.32108068,573.46,570.86,0.28777288]
[1741032119796,0.32108068,573.46,570.87,0.28777288]
[1741032119994,0.32108068,573.46,570.88,0.28777288]
[1741032120290,0.32108068,573.46,570.89,0.28777288]
[1741032120494,0.32108068,573.46,570.9,0.28777288]
[1741032120796,0.32108068,573.46,570.91,0.28777288]
[1741032121097,1.82519876,573.47,570.92,0.28777288]
[1741032121288,1.82519876,573.47,570.93,0.28777288]
[1741032121489,0.937,573.69,570.93,0.28777288]
[1741032121695,0.937,573.69,570.94,0.28777288]
[1741032121995,0.937,573.69,570.95,0.28777288]
[1741032122194,0.937,573.69,570.96,0.28777288]
[1741032122395,0.937,573.69,570.76,1.28530362]
[1741032122396,0.937,573.69,570.97,0.28777288]
[1741032122593,0.937,573.69,570.98,0.28777288]
[1741032122793,0.937,573.69,570.99,0.28777288]
[1741032122991,0.937,573.69,571.0,0.28777288]
[1741032123194,0.937,573.69,571.01,0.28777288]
[1741032123394,0.937,573.69,571.02,0.28777288]
[1741032123591,0.32084388,573.68,571.02,0.28777288]
[1741032123789,0.32084388,573.68,571.03,0.28777288]
[1741032123995,0.32084388,573.68,571.62,1.28530362]
[1741032124403,0.32084388,573.68,571.63,0.28777288]
[1741032124603,0.32084388,573.67,571.63,0.28777288]
[1741032124804,0.32084388,573.68,571.64,0.28777288]
[1741032124995,0.32084388,573.67,571.65,0.28777288]
[1741032125192,0.32084388,573.68,571.66,0.28777288]
[1741032125395,0.32084388,573.67,571.67,0.28777288]
[1741032125599,0.32084388,573.68,571.68,0.28777288]
[1741032125893,0.937,573.69,571.69,0.28777288]
[1741032126204,0.937,573.69,571.7,0.28777288]
[1741032126399,0.937,573.69,571.71,0.28777288]
[1741032126695,0.937,573.69,571.72,0.28777288]
[1741032126894,0.937,573.69,571.73,0.28777288]
[1741032127096,0.937,573.69,571.74,0.28777288]
[1741032127600,0.937,573.69,571.75,0.28777288]
[1741032127794,0.937,573.69,571.76,0.28777288]
[1741032127994,0.937,573.69,571.77,0.28777288]
[1741032128294,0.937,573.69,571.01,1.28530362]
[1741032128506,0.937,573.69,571.5,1.28530362]
[1741032128701,0.937,573.69,571.51,0.28733524]
[1741032129000,0.937,573.69,571.52,0.28733524]
[1741032129199,0.937,573.69,571.53,0.28733524]
[1741032129397,0.937,573.69,571.51,0.28733524]
[1741032129603,0.937,573.69,571.52,0.28733524]
[1741032129604,0.32085429,573.68,571.52,0.28733524]
[1741032129804,0.937,573.69,571.31,1.28530362]
[1741032130010,0.32090065,573.68,571.32,0.28759698]
[1741032130199,0.32090065,573.67,571.33,0.28759698]
[1741032130394,0.32090065,573.68,571.34,0.28759698]
[1741032130700,0.937,573.69,571.31,1.28530362]
[1741032130901,0.32082302,573.68,571.32,0.28751885]
[1741032131099,0.32082302,573.68,571.33,0.28751885]
[1741032131304,0.937,573.69,571.31,1.28530362]
[1741032131305,0.937,573.69,571.34,0.28751885]
[1741032131505,1.82352505,573.67,571.35,0.28751885]
[1741032131698,1.82352505,573.67,571.36,0.28751885]
[1741032131902,1.82352505,573.67,571.37,0.28751885]
[1741032132102,1.82352505,573.67,571.38,0.28751885]
[1741032132297,1.82352505,573.67,571.39,0.28751885]
[1741032132496,1.82352505,573.67,571.4,0.28751885]
[1741032132899,0.937,573.69,571.41,0.28751885]
[1741032133204,0.937,573.69,571.42,0.28751885]
[1741032133597,0.937,573.69,571.43,0.28751885]
[1741032133801,0.937,573.69,571.44,0.28751885]
[1741032134002,0.937,573.69,571.45,0.28751885]
[1741032134202,0.937,573.69,571.14,0.28751885]
[1741032134406,0.937,573.69,571.15,0.28751885]
[1741032134704,0.937,573.69,571.16,0.28751885]
[1741032135005,0.937,573.69,571.65,1.28530362]
[1741032135300,0.937,573.69,571.66,0.28751885]
[1741032135599,0.937,573.69,571.67,0.28751885]
[1741032135797,0.937,573.69,571.65,1.28530362]
[1741032135798,0.937,573.69,571.68,0.28751885]
[1741032136005,0.937,573.69,571.69,0.28751885]
[1741032136208,0.937,573.69,571.7,0.28751885]
[1741032136408,0.937,573.69,571.71,0.28751885]
[1741032136601,0.937,573.69,571.72,0.28751885]
[1741032136807,0.937,573.69,571.73,0.28751885]
[1741032137104,0.937,573.69,571.55,1.28530362]
[1741032137105,0.937,573.69,571.74,0.28751885]
[1741032137309,0.937,573.69,571.75,0.28751885]
[1741032137606,0.937,573.69,571.76,0.28751885]
[1741032137798,0.937,573.69,571.77,0.28751885]
[1741032138003,0.32081653,573.68,571.77,0.28751885]
[1741032138300,0.32081653,573.68,571.78,0.28751885]
[1741032138501,0.32081653,573.85,571.79,0.28751885]
[1741032138700,0.32081653,573.85,571.8,0.28751885]
[1741032138902,5.30369205,573.85,571.56,0.28751885]
[1741032139200,1.63071339,573.76,571.57,0.28751885]
[1741032139402,0.32081653,573.75,571.58,0.28751885]
[1741032139701,0.32086313,573.74,571.59,0.28755845]
[1741032139903,0.32086313,573.74,571.6,0.28755845]
[1741032140099,0.32086313,573.73,571.6,0.28755845]
[1741032140299,5.15691423,573.81,571.61,0.28755845]
[1741032140300,2.06748176,573.8,571.61,0.28755845]
[1741032140504,0.32086313,573.79,571.62,0.28755845]
[1741032140703,2.06748176,573.79,571.63,0.28755845]
[1741032140904,0.32086313,573.78,571.64,0.28755845]
[1741032141204,2.06748176,573.78,571.65,0.28755845]
[1741032141399,0.32086313,573.77,571.28,0.28755845]
[1741032141600,0.32086313,573.77,571.66,0.28755845]
[1741032141806,4.7909011,573.77,571.67,0.28755845]
[1741032142001,4.54062222,573.76,571.28,0.28755845]
[1741032142204,3.24745651,573.75,571.68,0.28755845]
[1741032142398,1.68393577,573.73,571.09,0.28755845]
[1741032142605,1.68393577,573.69,571.69,0.28755845]
[1741032142805,1.68393577,573.6,571.7,0.28755845]
[1741032143000,0.32086313,573.59,571.09,0.28755845]
[1741032143201,1.63071339,573.49,571.1,0.28755845]
[1741032143413,1.63071339,573.49,571.11,0.28755845]
[1741032143707,0.32086313,573.48,571.12,0.28755845]
[1741032143907,0.32086313,573.48,571.13,0.28755845]
[1741032144108,0.32086313,573.48,571.0,0.28755845]
[1741032144306,7.79163656,573.66,570.99,1.28530362]
[1741032144504,1.63071339,573.54,571.01,0.28780088]
[1741032144700,0.32110893,573.53,571.02,0.28780088]
[1741032144906,0.32110893,573.53,571.03,0.28780088]
[1741032145100,8.81324363,573.62,571.04,0.28780088]
[1741032145303,8.28918612,573.61,571.05,0.28780088]
[1741032145503,7.58849683,573.6,571.06,0.28780088]
[1741032145702,7.58849683,573.59,571.07,0.28780088]
[1741032145906,7.58843098,573.58,571.08,0.28773632]
[1741032146108,4.11354973,573.6,571.09,0.28773632]
[1741032146109,7.58843098,573.57,571.09,0.28773632]
[1741032146408,4.11354973,573.6,571.1,0.28773632]
[1741032146409,0.32104308,573.56,571.1,0.28773632]
[1741032146709,4.11354973,573.56,571.11,0.28773632]
[1741032147008,4.11354973,573.56,571.12,0.28773632]
[1741032147308,1.82421807,573.75,571.24,0.35011553]
[1741032147612,0.32072874,573.74,571.25,0.28773632]
[1741032147803,1.186,573.73,571.26,0.28773632]
[1741032148008,1.186,573.73,571.27,0.28773632]
[1741032148304,1.186,573.73,571.24,0.35011553]
[1741032148305,1.186,573.73,571.42,2.62416156]
[1741032148509,0.3207468,573.72,571.65,1.28530362]
[1741032148708,0.3207468,573.72,571.66,0.28773632]
[1741032149008,1.186,573.73,571.67,0.28751446]
[1741032149208,1.186,573.73,571.66,0.28751446]
[1741032149407,1.186,573.73,571.67,0.28751446]
[1741032149704,0.32079968,573.72,571.69,0.34983994]
[1741032149908,1.186,573.73,571.7,0.28751446]
[1741032150104,1.186,573.73,571.71,0.28751446]
[1741032150305,1.186,573.73,571.72,0.28751446]
[1741032150607,1.186,573.73,571.73,0.28733912]
[1741032150907,1.186,573.73,571.74,0.28733912]
[1741032151105,1.186,573.73,571.75,0.28733912]
[1741032151303,1.186,573.73,571.76,0.28733912]
[1741032151505,1.186,573.73,571.77,0.28733912]
[1741032151705,1.186,573.73,571.69,0.34983994]
[1741032151706,1.186,573.73,571.78,0.637124]
[1741032152003,1.186,573.73,571.79,0.28733912]
[1741032152201,1.186,573.73,571.8,0.28733912]
[1741032152404,1.186,573.73,571.81,0.28733912]
[1741032152608,1.186,573.73,571.78,0.34978488]
[1741032152609,1.186,573.73,571.88,1.28530362]
[1741032152808,1.186,573.73,571.89,0.28733912]
[1741032153005,1.186,573.73,571.9,0.28733912]
[1741032153210,0.34860818,573.71,571.91,0.28733912]
[1741032153401,0.34860818,573.71,571.92,0.28733912]
[1741032153609,1.284,573.7,571.88,1.28530362]
[1741032153809,1.284,573.7,571.89,0.28705617]
[1741032154107,1.284,573.7,571.9,0.28705617]
[1741032154414,1.284,573.7,571.91,0.28705617]
[1741032154603,1.284,573.7,571.92,0.28705617]
[1741032154909,1.284,573.7,571.93,0.28705617]
[1741032155106,1.284,573.7,572.37,1.28530362]
[1741032155411,1.284,573.7,572.38,0.28701244]
[1741032155609,1.284,573.7,572.39,0.28701244]
[1741032155811,1.284,573.7,572.4,0.28701244]
[1741032156004,1.284,573.7,572.41,0.28701244]
[1741032156208,1.284,573.7,572.42,0.28701244]
[1741032156410,1.284,573.7,572.43,0.28701244]
[1741032156611,1.284,573.7,572.44,0.28701244]
[1741032156809,1.284,573.7,572.45,0.28701244]
[1741032157106,1.284,573.7,572.46,0.28701244]
[1741032157508,1.284,573.7,572.47,0.28701244]
[1741032157814,1.284,573.7,572.48,0.28701244]
[1741032158006,1.284,573.7,572.49,0.28701244]
[1741032158205,1.284,573.7,572.5,0.28701244]
[1741032158410,1.284,573.7,572.51,0.28716392]
[1741032158610,1.284,573.7,572.3,0.28716392]
[1741032158810,1.284,573.7,572.52,0.28716392]
[1741032159111,1.284,573.7,572.53,0.28716392]
[1741032159311,1.284,573.7,572.3,0.28716392]
[1741032159508,1.284,573.7,572.31,0.28716392]
[1741032159810,1.284,573.7,572.05,1.28530362]
[1741032160014,1.284,573.7,572.32,0.28729033]
[1741032160207,1.284,573.7,572.33,0.28729033]
[1741032160407,1.284,573.7,572.34,0.28729033]
[1741032160612,1.284,573.7,572.05,1.28530362]
[1741032160613,1.284,573.7,572.35,0.28729033]
[1741032160806,1.284,573.7,572.36,0.28729033]
[1741032161008,1.284,573.7,572.06,0.28729033]
[1741032161209,1.284,573.7,572.07,0.28729033]
[1741032161406,0.32070834,573.69,572.08,0.28729033]
[1741032161705,0.32070834,573.69,572.09,0.28729033]
[1741032161909,1.284,573.7,572.06,0.28729033]
[1741032162110,1.284,573.7,572.07,0.28729033]
[1741032162306,1.284,573.7,572.08,0.28729033]
[1741032162506,1.284,573.7,572.09,0.28729033]
[1741032162709,1.284,573.7,572.1,0.28729033]
[1741032162909,1.284,573.7,571.98,1.28530362]
[1741032163109,1.284,573.7,572.11,0.28730797]
[1741032163415,1.284,573.7,572.12,0.28730797]
[1741032163615,1.284,573.7,572.13,0.28730797]
[1741032163809,1.284,573.7,572.14,0.28730797]
[1741032164009,1.284,573.7,571.98,1.28530362]
[1741032164010,1.284,573.7,571.99,0.28730797]
[1741032164210,1.284,573.7,572.15,0.28730797]
[1741032164413,1.284,573.7,572.16,0.28730797]
[1741032164614,1.284,573.7,571.98,0.28730797]
[1741032164812,1.284,573.7,571.99,0.28730797]
[1741032165013,1.284,573.7,571.97,1.28530362]
[1741032165014,1.284,573.7,572.0,0.28730797]
[1741032165212,1.284,573.7,572.01,0.28730797]
[1741032165419,1.284,573.7,572.02,0.28730797]
[1741032165625,1.284,573.7,572.03,0.28730797]
[1741032165818,1.284,573.7,572.04,0.28730797]
[1741032166019,1.284,573.7,571.97,1.28530362]
[1741032166225,1.284,573.7,571.98,0.28717451]
[1741032166425,1.284,573.7,571.99,0.28717451]
[1741032166628,1.284,573.7,572.0,0.28717451]
[1741032166927,1.284,573.7,572.01,0.28717451]
[1741032167122,1.284,573.7,572.02,0.28717451]
[1741032167422,1.284,573.7,572.03,0.28717451]
[1741032167726,1.284,573.7,572.04,0.28717451]
[1741032167927,1.8222678,573.69,572.05,0.28717451]
[1741032168228,1.8222678,573.69,572.06,0.28717451]
[1741032168424,1.8222678,573.69,572.07,0.28717451]
[1741032168727,1.8222678,573.69,572.08,0.28717451]
[1741032168929,1.8222678,573.69,572.09,0.28717451]
[1741032169126,1.8222678,573.69,572.1,0.28717451]
[1741032169426,1.82292803,573.68,571.97,0.28717451]
[1741032169631,1.82292803,573.68,571.98,0.28717451]
[1741032169930,0.32075407,573.67,571.99,0.28717451]
[1741032170130,0.32075407,573.67,571.96,1.28530362]
[1741032170131,0.32075407,573.67,571.97,0.28717451]
[1741032170336,1.82292803,573.68,571.98,0.28717451]
[1741032170530,1.82292803,573.68,571.99,0.28717451]
[1741032170839,0.32089777,573.67,572.0,0.28717451]
[1741032171037,0.32089777,573.67,571.97,0.28717451]
[1741032171237,0.32089777,573.67,572.01,0.28717451]
[1741032171734,0.32089777,573.67,571.68,1.28530362]
[1741032171735,3.10639352,573.67,571.98,0.28717451]
[1741032171931,0.32089777,573.66,571.99,0.28717451]
[1741032172131,1.3598018,573.66,572.0,0.28717451]
[1741032172330,3.05412488,573.66,571.68,1.28530362]
[1741032172528,4.93036959,573.65,572.01,0.28767939]
[1741032172730,1.35988933,573.64,572.02,0.28767939]
[1741032172934,0.3209853,573.63,571.69,0.28767939]
[1741032173141,0.3209853,573.62,571.7,0.28767939]
[1741032173335,0.3209853,573.62,571.69,0.28767939]
[1741032173543,1.03907872,573.62,571.7,0.28767939]
[1741032173742,1.03907872,573.62,571.71,0.28767939]
[1741032173743,0.3209853,573.61,571.71,0.28767939]
[1741032173938,1.03907872,573.61,570.95,1.28530362]
[1741032174144,0.3210128,573.6,571.03,0.28770668]
[1741032174344,1.36074877,573.6,571.04,0.28770668]
[1741032174644,0.3210128,573.59,571.05,0.28770668]
[1741032174840,5.29603519,573.59,571.06,0.28770668]
[1741032175040,0.3210128,573.58,571.07,0.28770668]
[1741032175243,1.6774064,573.49,571.08,0.28770668]
[1741032175439,0.3210128,573.48,571.09,0.28770668]
[1741032175643,0.3210128,573.54,571.1,0.28770668]
[1741032175842,0.3210128,573.53,571.11,0.28770668]
[1741032176037,1.63071339,573.5,571.12,0.28770668]
[1741032176245,0.3210128,573.49,571.13,0.28770668]
[1741032176447,0.3210128,573.49,571.14,0.28770668]
[1741032176643,0.3210128,573.49,571.15,0.28770668]
[1741032176844,0.3210128,573.49,571.16,0.28770668]
[1741032177047,3.1093463,573.52,571.17,0.28770668]
[1741032177242,0.938,573.48,571.18,0.28770668]
[1741032177439,0.938,573.48,571.08,1.28530362]
[1741032177440,0.3210128,573.47,571.19,0.28770668]
[1741032177646,0.3210128,573.47,571.08,1.28530362]
[1741032177647,0.3210128,573.47,571.2,0.28770668]
[1741032177839,0.3210128,573.47,571.21,0.28770668]
[1741032178045,0.3210128,573.46,571.22,0.28770668]
[1741032178241,0.3210128,573.47,571.23,0.28770668]
[1741032178446,1.82485579,573.45,571.24,0.28770668]
[1741032178739,1.82485579,573.45,571.08,1.28530362]
[1741032178740,0.3210128,573.44,571.25,0.28770668]
[1741032178945,0.3210128,573.44,571.26,0.28770668]
[1741032179147,0.3210128,573.44,571.27,0.28770668]
[1741032179345,9.31592237,573.44,571.28,0.28770668]
[1741032179645,2.06783904,573.43,571.29,0.28770668]
[1741032179841,2.06783904,573.43,571.3,0.28770668]
[1741032179842,0.3210128,573.42,571.3,0.28770668]
[1741032180047,0.3210128,573.42,571.31,0.28770668]
[1741032180247,0.3210128,573.42,571.32,0.28770668]
[1741032180446,0.3210128,573.43,571.33,0.28770668]
[1741032180649,0.3210128,573.43,571.34,0.28770668]
[1741032180840,0.3210128,573.44,571.35,0.28770668]
[1741032181048,1.82485579,573.45,571.36,0.28770668]
[1741032181255,0.32097077,573.44,571.37,0.28770668]
[1741032181447,1.82388344,573.44,571.38,0.28770668]
[1741032181643,1.82388344,573.44,571.39,0.28770668]
[1741032181847,0.32096103,573.43,571.4,0.28765478]
[1741032182044,0.32096103,573.43,571.41,0.28765478]
[1741032182252,0.32096103,573.43,571.42,0.28765478]
[1741032182456,0.32096103,573.43,571.43,0.28765478]
[1741032182650,0.32096103,573.43,571.44,0.28765478]
[1741032182851,0.32096103,573.42,571.45,0.28765478]
[1741032183046,1.68434863,573.36,571.45,0.28765478]
[1741032183246,1.68434863,573.37,571.46,0.28765478]
[1741032183451,0.32096103,573.35,571.47,0.28765478]
[1741032183651,0.32096103,573.34,571.48,0.28765478]
[1741032184053,7.78006139,573.37,571.34,0.28765478]
[1741032184258,0.32096103,573.33,571.49,0.28765478]
[1741032184455,7.78006139,573.36,571.33,1.042]
[1741032184456,7.57682138,573.35,571.35,0.28765478]
[1741032184649,0.32096103,573.32,571.36,0.28765478]
[1741032184852,0.32096103,573.31,571.37,0.28765478]
[1741032185051,5.23385184,573.36,571.38,0.28765478]
[1741032185256,5.23385184,573.36,571.39,0.28765478]
[1741032185454,1.82445716,573.36,571.4,0.28765478]
[1741032185656,1.82445716,573.36,571.41,0.28765478]
[1741032185855,1.82445716,573.36,571.33,1.042]
[1741032185856,1.82445716,573.36,571.42,0.28765478]
[1741032186060,1.82445716,573.36,571.43,0.28765478]
[1741032186253,1.82445716,573.36,571.44,0.28755917]
[1741032186452,1.82445716,573.36,571.45,0.28755917]
[1741032186753,1.82445716,573.36,571.46,0.28755917]
[1741032187052,0.938,573.48,571.47,0.28755917]
[1741032187252,0.938,573.48,571.48,0.28755917]
[1741032187449,0.938,573.48,571.49,0.28755917]
[1741032187654,0.938,573.48,571.5,0.28755917]
[1741032188049,0.938,573.48,571.51,0.28755917]
[1741032188256,0.938,573.48,571.53,1.28530362]
[1741032188457,0.938,573.48,571.54,0.28755917]
[1741032188654,0.938,573.48,571.55,0.28755917]
[1741032188851,0.938,573.48,571.56,0.28755917]
[1741032189050,0.32082471,573.47,571.57,0.28755917]
[1741032189364,0.3208346,573.46,571.58,0.28755917]
[1741032189552,0.3208346,573.5,571.59,0.28755917]
[1741032189751,1.82331008,573.51,571.6,0.28755917]
[1741032189957,1.82331008,573.51,571.61,0.28755917]
[1741032190261,1.82331008,573.51,571.62,0.28755917]
[1741032190455,1.82331008,573.51,571.63,0.28755917]
[1741032190655,1.82331008,573.51,571.64,0.28755917]
[1741032190852,1.82331008,573.51,571.65,0.28755917]
[1741032191057,3.41489951,573.87,571.66,0.28755917]
[1741032191250,1.8228962,573.57,571.67,0.28755917]
[1741032191457,2.78889612,574.18,571.68,0.28755917]
[1741032191651,1.82278481,573.66,571.69,0.28755917]
[1741032191954,3.41489951,574.25,571.7,0.28755917]
[1741032192158,1.82291212,573.65,571.71,0.28755917]
[1741032192457,3.11068699,574.24,571.72,0.28755917]
[1741032192458,1.68354054,574.19,571.72,0.28755917]
[1741032192650,0.32071444,574.18,571.73,0.28741301]
[1741032192854,1.82306332,573.64,571.74,0.287414]
[1741032193052,4.53594432,574.17,571.75,0.287414]
[1741032193251,8.09840289,574.16,571.76,0.287414]
[1741032193562,1.68354054,574.05,571.77,0.287414]
[1741032193756,1.68354054,573.99,571.78,0.287414]
[1741032194054,0.32076387,573.98,571.79,0.287414]
[1741032194451,0.32076387,573.97,571.8,0.287414]
[1741032194758,0.32076387,573.96,571.81,0.287414]
[1741032194960,3.11086419,574.09,571.82,0.287414]
[1741032195155,1.36800635,574.08,571.83,0.287414]
[1741032195359,0.32076387,574.07,571.84,0.287414]
[1741032195554,0.32076387,574.07,571.85,0.287414]
[1741032195774,0.32076387,574.07,571.86,0.287414]
[1741032195956,2.00981303,574.07,571.87,0.287414]
[1741032196160,1.63071339,574.05,571.89,0.3497176]
[1741032196359,0.34841384,574.03,571.9,0.287414]
[1741032196563,0.32076387,574.02,571.91,0.287414]
[1741032196754,0.32076387,574.02,571.92,0.287414]
[1741032196956,0.34841384,574.03,571.93,0.287414]
[1741032197159,0.34841384,574.03,571.94,0.287414]
[1741032197561,0.34841384,574.03,571.95,0.287414]
[1741032197763,0.34841384,574.03,571.96,0.287414]
[1741032197966,0.34841384,574.03,571.97,0.287414]
[1741032198260,0.34841384,574.03,571.98,0.287414]
[1741032198463,0.34841384,574.03,571.99,0.287414]
[1741032198665,0.34841384,574.03,572.0,0.287414]
[1741032198862,0.34841384,574.03,571.89,0.3497176]
[1741032198863,0.34841384,574.03,572.01,0.287414]
[1741032199163,0.34841384,574.03,572.02,0.287414]
[1741032199360,0.34841384,574.03,572.03,0.287414]
[1741032199565,0.34841384,574.03,572.04,0.287414]
[1741032199762,0.34841384,574.03,572.05,0.287414]
[1741032199957,0.34841384,574.03,572.06,0.287414]
[1741032200157,0.34841384,574.03,572.07,0.287414]
[1741032200463,1.331,574.08,572.08,1.57271762]
[1741032200665,1.331,574.08,572.09,0.287414]
[1741032200857,1.331,574.08,572.1,0.28709316]
[1741032201064,0.34838956,574.07,572.11,0.28709316]
[1741032201363,0.34838956,574.07,572.12,0.28709316]
[1741032201564,0.34838956,574.07,572.13,0.28709316]
[1741032201761,0.34838956,574.07,572.14,0.28709316]
[1741032201965,0.34838956,574.07,572.15,0.28709316]